bitfinex/quotes_SOLUSD_20241216
["timestamp","ask_amount","ask_price","bid_price","bid_amount"]
[1734368623069,0.12549,218.66,218.61,16.57381541]
[1734368624272,23.69826378,218.68,218.62,16.57381541]
[1734368624470,0.12549,218.67,218.63,16.57381541]
[1734368624646,2.1083518,218.7,218.64,16.57381541]
[1734368624846,2.1083518,218.7,218.66,16.57381541]
[1734368625070,0.4540518,218.7,218.67,16.57381541]
[1734368625251,0.4540518,218.7,218.66,16.57381541]
[1734368625753,0.4540518,218.7,218.68,16.57381541]
[1734368626977,0.4540518,218.7,218.67,16.57381541]
[1734368627164,0.4540518,218.7,218.66,16.57381541]
[1734368627627,0.4540518,218.7,218.67,16.57381541]
[1734368629068,0.4540518,218.7,218.65,16.57381541]
[1734368629676,0.4540518,218.7,218.66,16.57381541]
[1734368631354,0.4540518,218.7,218.65,16.57381541]
[1734368634365,0.4540518,218.7,218.66,16.57381541]
[1734368636277,0.4540518,218.7,218.67,16.57381541]
[1734368638070,0.4540518,218.7,218.68,16.57381541]
[1734368638476,0.4540518,218.7,218.69,16.57381541]
[1734368640379,0.4540518,218.7,218.67,16.57381541]
[1734368640695,0.4540518,218.7,218.68,16.57381541]
[1734368641000,0.4540518,218.7,218.66,16.57381541]
[1734368641162,0.4540518,218.7,218.65,16.57381541]
[1734368641364,0.4540518,218.7,218.67,16.57381541]
[1734368641979,0.4540518,218.7,218.68,16.57381541]
[1734368642384,0.12549,218.69,218.68,16.57381541]
[1734368642640,0.12549,218.69,218.64,16.57381541]
[1734368642966,0.12549,218.69,218.65,16.57381541]
[1734368643204,0.12549,218.69,218.64,16.57381541]
[1734368643366,0.4540518,218.7,218.64,16.57381541]
[1734368643713,0.4540518,218.7,218.66,16.57381541]
[1734368644419,0.4540518,218.7,218.68,16.57381541]
[1734368644919,0.4540518,218.7,218.67,16.57381541]
[1734368645264,0.4540518,218.7,218.68,16.57381541]
[1734368646003,0.4540518,218.7,218.62,0.68589668]
[1734368646004,0.4540518,218.7,218.67,16.57381541]
[1734368646811,0.4540518,218.7,218.68,16.57381541]
[1734368647185,0.4540518,218.7,218.69,16.57381541]
[1734368648106,0.4540518,218.7,218.68,16.57381541]
[1734368648314,0.4540518,218.7,218.62,20.68588527]
[1734368648315,0.4540518,218.7,218.67,16.57381541]
[1734368648901,0.4540518,218.7,218.64,16.57381541]
[1734368649105,0.4540518,218.7,218.66,16.57381541]
[1734368651694,6.3419,218.84,218.8,16.57381541]
[1734368651884,6.3419,218.84,218.79,16.57381541]
[1734368652088,16.69930541,218.83,218.76,16.57381541]
[1734368652403,16.57381541,218.82,218.76,16.57381541]
[1734368652720,0.12549,218.81,218.76,16.57381541]
[1734368652909,0.12549,218.81,218.75,16.57381541]
[1734368653102,16.69930541,218.81,218.74,16.57381541]
[1734368653506,16.57381541,218.78,218.72,16.57381541]
[1734368653805,16.57381541,218.78,218.66,1.5955]
[1734368653806,16.57381541,218.77,218.71,16.57381541]
[1734368654002,0.12549,218.78,218.72,16.57381541]
[1734368654325,0.12549,218.78,218.66,1.5955]
[1734368654326,16.57381541,218.77,218.71,16.57381541]
[1734368654528,16.57381541,218.76,218.7,16.57381541]
[1734368654690,23.776884,218.83,218.67,16.57381541]
[1734368654889,23.776884,218.83,218.63,0.68573641]
[1734368654890,16.69930541,218.75,218.69,16.57381541]
[1734368655093,0.12549,218.75,218.69,16.57381541]
[1734368655323,1.5519,218.76,218.72,16.57381541]
[1734368655531,16.57381541,218.79,218.72,16.57381541]
[1734368655707,16.57381541,218.78,218.71,16.57381541]
[1734368655907,16.57381541,218.77,218.7,16.57381541]
[1734368656413,0.12549,218.8,218.71,16.57381541]
[1734368656414,16.57381541,218.78,218.71,16.57381541]
[1734368656807,20.12549,218.8,218.74,16.57381541]
[1734368657133,20.0,218.8,218.76,16.57381541]
[1734368657864,20.0,218.79,218.75,16.57381541]
[1734368658021,1.5519,218.81,218.75,16.57381541]
[1734368659072,18.12571541,218.81,218.74,16.57381541]
[1734368659282,18.12571541,218.81,218.68,16.57381541]
[1734368659283,16.57381541,218.8,218.73,16.57381541]
[1734368659453,18.12571541,218.81,218.74,16.57381541]
[1734368659842,16.57381541,218.78,218.71,16.57381541]
[1734368662242,16.57381541,218.75,218.68,16.57381541]
[1734368662447,16.57381541,218.76,218.69,16.57381541]
[1734368663555,16.57381541,218.77,218.7,16.57381541]
[1734368664483,20.0,218.72,218.68,16.57381541]
[1734368665049,20.0,218.71,218.66,16.57381541]
[1734368665499,20.0,218.69,218.64,16.57381541]
[1734368665661,20.0,218.67,218.62,16.57381541]
[1734368666445,20.0,218.67,218.61,16.57381541]
[1734368666650,20.0,218.67,218.63,16.57381541]
[1734368666883,20.0,218.66,218.63,16.57381541]
[1734368667267,20.0,218.66,218.57,16.57381541]
[1734368667268,20.0,218.66,218.62,16.57381541]
[1734368668586,20.0,218.66,218.6,16.57381541]
[1734368669105,36.57381541,218.66,218.6,16.57381541]
[1734368669463,0.12549,218.66,218.61,16.57381541]
[1734368669665,20.0,218.65,218.61,16.57381541]
[1734368670389,20.0,218.65,218.6,16.57381541]
[1734368670972,20.0,218.62,218.58,16.57381541]
[1734368671175,20.0,218.62,218.59,16.57381541]
[1734368671587,7.12444837,218.69,218.61,16.57381541]
[1734368671797,25.25726378,218.72,218.65,16.57381541]
[1734368672088,18.13281541,218.72,218.65,16.57381541]
[1734368672295,1.559,218.72,218.66,16.57381541]
[1734368672510,1.559,218.72,218.69,16.57381541]
[1734368672807,13.17244837,218.75,218.7,16.57381541]
[1734368673102,6.048,218.75,218.69,16.57381541]
[1734368674803,6.048,218.75,218.6,2.31664685]
[1734368674804,6.048,218.75,218.7,16.57381541]
[1734368675705,1.6537,218.77,218.72,16.57381541]
[1734368676215,7.12444837,218.79,218.73,16.57381541]
[1734368676414,16.57381541,218.79,218.72,16.57381541]
[1734368676945,16.57381541,218.79,218.65,0.68570768]
[1734368676946,16.57381541,218.78,218.71,16.57381541]
[1734368677922,16.57381541,218.77,218.7,16.57381541]
[1734368679324,6.1059,218.8,218.65,0.68570768]
[1734368679325,16.57381541,218.78,218.71,16.57381541]
[1734368679860,16.57381541,218.77,218.7,16.57381541]
[1734368680012,16.57381541,218.78,218.71,16.57381541]
[1734368680928,22.67971541,218.8,218.73,16.57381541]
[1734368681114,6.1059,218.8,218.74,16.57381541]
[1734368681425,6.1059,218.8,218.75,16.57381541]
[1734368681818,6.1059,218.8,218.74,16.57381541]
[1734368682611,25.35196378,218.82,218.75,16.57381541]
[1734368682826,18.22751541,218.82,218.75,16.57381541]
[1734368683412,1.6537,218.82,218.76,16.57381541]
[1734368683930,16.57381541,218.84,218.77,16.57381541]
[1734368684720,23.20481541,218.85,218.78,16.57381541]
[1734368685213,16.57381541,218.84,218.78,16.57381541]
[1734368688042,6.631,218.85,218.78,16.57381541]
[1734368688355,23.20481541,218.85,218.79,16.57381541]
[1734368688653,16.57381541,218.84,218.78,16.57381541]
[1734368689612,16.57381541,218.81,218.75,16.57381541]
[1734368689819,16.57381541,218.78,218.71,16.57381541]
[1734368690045,16.57381541,218.77,218.71,16.57381541]
[1734368690255,16.57381541,218.78,218.71,16.57381541]
[1734368690438,20.0,218.74,218.7,16.57381541]
[1734368690645,20.0,218.72,218.62,13.46874223]
[1734368690844,16.57381541,218.73,218.67,16.57381541]
[1734368691021,20.0,218.72,218.68,16.57381541]
[1734368693273,20.0,218.76,218.71,16.57381541]
[1734368695051,16.57381541,218.81,218.74,16.57381541]
[1734368695253,20.0,218.78,218.74,16.57381541]
[1734368695483,20.0,218.78,218.73,16.57381541]
[1734368695667,20.0,218.78,218.74,16.57381541]
[1734368695873,31.55576378,218.83,218.76,16.57381541]
[1734368696199,25.32266378,218.83,218.76,16.57381541]
[1734368696583,23.69826378,218.83,218.76,16.57381541]
[1734368696764,7.12444837,218.83,218.77,16.57381541]
[1734368697159,7.12444837,218.83,218.71,43.776884]
[1734368697475,16.57381541,218.82,218.76,16.57381541]
[1734368698069,16.57381541,218.77,218.68,5.88011613]
[1734368698274,0.12549,218.83,218.69,16.57381541]
[1734368698275,16.57381541,218.75,218.69,16.57381541]
[1734368698582,16.57381541,218.77,218.7,16.57381541]
[1734368699140,16.57381541,218.78,218.71,16.57381541]
[1734368699493,7.12444837,218.82,218.63,1.83121095]
[1734368699494,16.57381541,218.79,218.72,16.57381541]
[1734368699695,16.57381541,218.78,218.71,16.57381541]
[1734368700428,20.0,218.8,218.74,16.57381541]
[1734368700578,16.57381541,218.82,218.75,16.57381541]
[1734368700781,16.57381541,218.85,218.78,16.57381541]
[1734368700983,16.57381541,218.84,218.77,16.57381541]
[1734368701184,14.90104837,218.88,218.77,16.57381541]
[1734368701185,16.57381541,218.83,218.77,16.57381541]
[1734368701432,7.12444837,218.87,218.69,0.68559947]
[1734368701433,16.57381541,218.81,218.74,16.57381541]
[1734368701726,16.57381541,218.83,218.76,16.57381541]
[1734368702591,16.57381541,218.82,218.75,16.57381541]
[1734368702990,16.57381541,218.83,218.77,16.57381541]
[1734368703201,16.57381541,218.82,218.75,16.57381541]
[1734368703523,16.57381541,218.79,218.72,16.57381541]
[1734368704288,0.12549,218.84,218.67,5.88011613]
[1734368704289,16.57381541,218.8,218.74,16.57381541]
[1734368704509,16.57381541,218.78,218.71,16.57381541]
[1734368704707,0.12549,218.84,218.69,16.57381541]
[1734368704708,16.57381541,218.76,218.69,16.57381541]
[1734368704906,16.57381541,218.76,218.67,23.776884]
[1734368704907,16.57381541,218.77,218.7,16.57381541]
[1734368706021,16.57381541,218.74,218.67,16.57381541]
[1734368706234,7.8211,218.77,218.63,16.57381541]
[1734368706235,16.57381541,218.7,218.63,16.57381541]
[1734368706389,16.57381541,218.69,218.62,16.57381541]
[1734368706624,16.57381541,218.68,218.61,16.57381541]
[1734368707017,16.57381541,218.69,218.62,16.57381541]
[1734368707586,14.41237936,218.76,218.65,16.57381541]
[1734368707587,16.57381541,218.72,218.65,16.57381541]
[1734368707932,16.57381541,218.74,218.67,16.57381541]
[1734368708492,16.57381541,218.73,218.67,16.57381541]
[1734368709096,16.57381541,218.74,218.67,16.57381541]
[1734368709421,16.57381541,218.75,218.68,16.57381541]
[1734368709920,16.57381541,218.74,218.67,16.57381541]
[1734368710419,16.57381541,218.75,218.68,16.57381541]
[1734368710615,24.39491541,218.77,218.7,16.57381541]
[1734368710775,20.0,218.74,218.7,16.57381541]
[1734368710966,7.8211,218.77,218.71,16.57381541]
[1734368711207,24.39491541,218.77,218.7,16.57381541]
[1734368712100,16.57381541,218.76,218.69,16.57381541]
[1734368712269,16.57381541,218.75,218.68,16.57381541]
[1734368712879,16.57381541,218.76,218.69,16.57381541]
[1734368713287,24.39491541,218.77,218.7,16.57381541]
[1734368713792,0.12549,218.75,218.69,16.57381541]
[1734368713995,16.57381541,218.74,218.67,16.57381541]
[1734368714178,16.57381541,218.73,218.66,16.57381541]
[1734368714492,16.57381541,218.71,218.65,16.57381541]
[1734368714681,16.57381541,218.72,218.65,16.57381541]
[1734368714878,16.57381541,218.73,218.66,16.57381541]
[1734368715979,16.57381541,218.71,218.64,16.57381541]
[1734368716581,16.57381541,218.68,218.62,16.57381541]
[1734368717901,16.57381541,218.69,218.62,16.57381541]
[1734368719221,16.57381541,218.64,218.57,16.57381541]
[1734368719399,16.57381541,218.63,218.56,16.57381541]
[1734368719702,7.7114,218.66,218.49,9.9860684]
[1734368719703,16.57381541,218.62,218.55,16.57381541]
[1734368720068,16.57381541,218.63,218.56,16.57381541]
[1734368720308,16.57381541,218.62,218.55,16.57381541]
[1734368720475,16.57381541,218.63,218.56,16.57381541]
[1734368721278,7.7114,218.66,218.6,16.57381541]
[1734368721506,7.12444837,218.68,218.5,0.12549]
[1734368721507,16.57381541,218.7,218.63,16.57381541]
[1734368721712,16.57381541,218.69,218.63,16.57381541]
[1734368722029,16.57381541,218.68,218.61,16.57381541]
[1734368722198,16.57381541,218.66,218.6,16.57381541]
[1734368722593,16.57381541,218.66,218.53,0.68607682]
[1734368722594,16.57381541,218.65,218.58,16.57381541]
[1734368722828,16.57381541,218.64,218.57,16.57381541]
[1734368723020,16.57381541,218.62,218.55,16.57381541]
[1734368723328,16.57381541,218.63,218.56,16.57381541]
[1734368723504,16.57381541,218.62,218.55,16.57381541]
[1734368723703,16.57381541,218.61,218.54,16.57381541]
[1734368723927,16.57381541,218.6,218.53,16.57381541]
[1734368724600,16.57381541,218.59,218.52,16.57381541]
[1734368724797,16.57381541,218.58,218.52,16.57381541]
[1734368725024,16.57381541,218.58,218.51,16.57381541]
[1734368725403,16.57381541,218.56,218.5,16.57381541]
[1734368725828,16.57381541,218.56,218.44,13.64731613]
[1734368725829,16.57381541,218.57,218.44,13.64731613]
[1734368726013,16.57381541,218.56,218.5,16.57381541]
[1734368726214,16.57381541,218.57,218.5,16.57381541]
[1734368726526,26.49758048,218.58,218.51,26.49758048]
[1734368726830,8.0805,218.6,218.54,26.49758048]
[1734368727328,34.57808048,218.6,218.53,26.49758048]
[1734368727510,8.0805,218.6,218.55,26.49758048]
[1734368728027,8.0805,218.6,218.54,26.49758048]
[1734368728398,34.57808048,218.6,218.53,26.49758048]
[1734368728626,26.49758048,218.6,218.53,26.49758048]
[1734368728818,26.49758048,218.61,218.54,26.49758048]
[1734368729218,0.12549,218.63,218.48,23.776884]
[1734368729219,26.49758048,218.62,218.55,26.49758048]
[1734368729427,7.9317,218.64,218.58,26.49758048]
[1734368729809,26.49758048,218.65,218.59,26.49758048]
[1734368730003,26.49758048,218.66,218.59,26.49758048]
[1734368730236,26.49758048,218.65,218.59,26.49758048]
[1734368730415,26.49758048,218.65,218.53,0.68617209]
[1734368730416,26.49758048,218.65,218.58,26.49758048]
[1734368730735,26.49758048,218.64,218.58,26.49758048]
[1734368731605,25.91178048,218.64,218.57,26.49758048]
[1734368731813,26.49758048,218.61,218.54,26.49758048]
[1734368732114,26.49758048,218.68,218.49,5.73306003]
[1734368732115,26.49758048,218.59,218.53,26.49758048]
[1734368732606,26.49758048,218.59,218.52,26.49758048]
[1734368732805,26.49758048,218.57,218.51,26.49758048]
[1734368733008,26.49758048,218.58,218.51,26.49758048]
[1734368733514,23.902374,218.67,218.49,26.49758048]
[1734368733515,26.49758048,218.56,218.49,26.49758048]
[1734368734027,0.12549,218.66,218.5,26.49758048]
[1734368734028,26.49758048,218.57,218.5,26.49758048]
[1734368734205,26.49758048,218.57,218.51,26.49758048]
[1734368734530,26.49758048,218.55,218.49,26.49758048]
[1734368734736,26.62307048,218.54,218.47,26.49758048]
[1734368735427,26.49758048,218.53,218.46,26.49758048]
[1734368735634,26.49758048,218.54,218.48,26.49758048]
[1734368735941,46.49758048,218.55,218.49,26.49758048]
[1734368736545,46.49758048,218.55,218.48,26.49758048]
[1734368737527,26.49758048,218.54,218.47,26.49758048]
[1734368737717,20.0,218.55,218.48,26.49758048]
[1734368737718,46.49758048,218.55,218.48,26.49758048]
[1734368737919,0.12549,218.54,218.48,26.49758048]
[1734368738123,46.49758048,218.55,218.49,26.49758048]
[1734368738435,26.49758048,218.55,218.49,26.49758048]
[1734368738634,34.03648048,218.58,218.51,26.49758048]
[1734368738840,0.12549,218.57,218.51,26.49758048]
[1734368739734,26.62307048,218.57,218.5,26.49758048]
[1734368739932,26.49758048,218.55,218.49,26.49758048]
[1734368741025,26.49758048,218.57,218.51,26.49758048]
[1734368741522,26.49758048,218.57,218.5,26.49758048]
[1734368741718,26.49758048,218.55,218.49,26.49758048]
[1734368741920,0.12549,218.55,218.49,26.49758048]
[1734368742828,26.49758048,218.55,218.49,26.49758048]
[1734368743139,26.49758048,218.52,218.46,26.49758048]
[1734368743344,26.49758048,218.52,218.45,26.49758048]
[1734368743640,26.49758048,218.51,218.45,26.49758048]
[1734368744545,26.49758048,218.54,218.48,26.49758048]
[1734368744862,20.0,218.55,218.4,0.68660234]
[1734368745020,34.03648048,218.58,218.52,26.49758048]
[1734368745364,7.5389,218.58,218.53,26.49758048]
[1734368745526,26.49758048,218.6,218.54,26.49758048]
[1734368745853,26.49758048,218.6,218.46,27.18397422]
[1734368745854,26.49758048,218.59,218.52,26.49758048]
[1734368746148,26.49758048,218.6,218.54,26.49758048]
[1734368746728,0.12549,218.59,218.54,26.49758048]
[1734368746935,26.49758048,218.6,218.54,26.49758048]
[1734368747335,26.49758048,218.61,218.54,26.49758048]
[1734368747948,16.55688931,218.61,218.54,16.55688931]
[1734368748446,16.68237931,218.62,218.55,16.55688931]
[1734368748652,16.55688931,218.61,218.55,16.55688931]
[1734368749152,16.55688931,218.61,218.54,16.55688931]
[1734368749479,16.55688931,218.6,218.54,16.55688931]
[1734368749832,16.55688931,218.59,218.53,16.55688931]
[1734368750231,16.55688931,218.6,218.54,16.55688931]
[1734368750462,16.55688931,218.61,218.54,16.55688931]
[1734368750660,16.55688931,218.61,218.55,16.55688931]
[1734368751160,16.55688931,218.62,218.55,16.55688931]
[1734368751329,16.55688931,218.61,218.55,16.55688931]
[1734368751738,0.12549,218.6,218.55,16.55688931]
[1734368752062,16.55688931,218.61,218.55,16.55688931]
[1734368753635,16.55688931,218.6,218.53,16.55688931]
[1734368753853,16.55688931,218.59,218.52,16.55688931]
[1734368754135,16.55688931,218.58,218.51,16.55688931]
[1734368754974,16.55688931,218.58,218.52,16.55688931]
[1734368756871,16.55688931,218.62,218.56,16.55688931]
[1734368757043,18.12578931,218.63,218.56,16.55688931]
[1734368757233,1.5689,218.63,218.58,16.55688931]
[1734368757893,1.5689,218.63,218.6,16.55688931]
[1734368758070,16.55688931,218.66,218.59,16.55688931]
[1734368759049,16.55688931,218.65,218.58,16.55688931]
[1734368760089,16.55688931,218.66,218.59,16.55688931]
[1734368760264,16.55688931,218.67,218.6,16.55688931]
[1734368761170,0.12549,218.68,218.61,16.55688931]
[1734368761171,16.55688931,218.68,218.61,16.55688931]
[1734368761472,16.55688931,218.68,218.54,0.68609662]
[1734368761473,25.19623768,218.74,218.67,16.55688931]
[1734368761681,1.5149,218.74,218.68,16.55688931]
[1734368761882,16.55688931,218.73,218.67,16.55688931]
[1734368762923,20.0,218.73,218.67,16.55688931]
[1734368763093,16.55688931,218.74,218.67,16.55688931]
[1734368763473,6.5749,218.76,218.68,16.55688931]
[1734368763474,16.55688931,218.75,218.68,16.55688931]
[1734368763667,16.68237931,218.74,218.62,0.68588027]
[1734368763874,16.55688931,218.69,218.62,16.55688931]
[1734368764081,16.55688931,218.7,218.62,16.55688931]
[1734368764289,16.55688931,218.7,218.63,16.55688931]
[1734368764489,16.55688931,218.71,218.64,16.55688931]
[1734368765194,16.55688931,218.7,218.63,16.55688931]
[1734368765428,16.55688931,218.68,218.61,36.55688931]
[1734368765580,16.55688931,218.66,218.59,16.55688931]
[1734368766299,16.55688931,218.67,218.6,16.55688931]
[1734368766717,16.55688931,218.66,218.59,16.55688931]
[1734368768091,16.55688931,218.67,218.6,16.55688931]
[1734368768275,16.55688931,218.69,218.62,16.55688931]
[1734368768478,0.12549,218.72,218.6,16.55688931]
[1734368768479,16.55688931,218.67,218.6,16.55688931]
[1734368769375,16.55688931,218.68,218.61,16.55688931]
[1734368769585,16.55688931,218.69,218.62,16.55688931]
[1734368769784,0.12549,218.72,218.61,16.55688931]
[1734368769785,16.55688931,218.68,218.61,16.55688931]
[1734368769986,16.55688931,218.67,218.6,16.55688931]
[1734368770191,16.55688931,218.66,218.6,16.55688931]
[1734368770392,16.55688931,218.67,218.6,16.55688931]
[1734368770599,16.55688931,218.69,218.62,16.55688931]
[1734368770905,16.55688931,218.68,218.61,16.55688931]
[1734368771206,16.55688931,218.67,218.6,16.55688931]
[1734368773086,16.55688931,218.68,218.61,16.55688931]
[1734368774504,16.55688931,218.66,218.59,16.55688931]
[1734368777001,16.55688931,218.63,218.56,16.55688931]
[1734368777203,16.55688931,218.6,218.53,16.55688931]
[1734368777698,16.55688931,218.6,218.54,16.55688931]
[1734368777699,0.12549,218.6,218.54,16.55688931]
[1734368778115,16.55688931,218.61,218.54,16.55688931]
[1734368778312,16.55688931,218.61,218.55,16.55688931]
[1734368778632,20.0,218.59,218.56,16.55688931]
[1734368778928,16.68237931,218.65,218.58,16.55688931]
[1734368779832,16.55688931,218.65,218.58,16.55688931]
[1734368780198,16.55688931,218.65,218.59,16.55688931]
[1734368780407,22.86108931,218.66,218.59,16.55688931]
[1734368780605,0.12549,218.65,218.59,16.55688931]
[1734368780813,16.55688931,218.66,218.59,16.55688931]
[1734368781138,16.55688931,218.65,218.59,16.55688931]
[1734368781303,0.12549,218.67,218.55,16.55688931]
[1734368781508,16.55688931,218.59,218.52,16.55688931]
[1734368781829,16.55688931,218.56,218.49,16.55688931]
[1734368782218,16.55688931,218.55,218.49,16.55688931]
[1734368782430,16.55688931,218.56,218.49,16.55688931]
[1734368783222,16.55688931,218.56,218.5,16.55688931]
[1734368783424,36.55688931,218.58,218.51,16.55688931]
[1734368783624,16.55688931,218.56,218.5,16.55688931]
[1734368783939,16.55688931,218.57,218.5,16.55688931]
[1734368784119,20.0,218.58,218.52,16.55688931]
[1734368784634,36.55688931,218.58,218.52,16.55688931]
[1734368786232,20.0,218.58,218.52,16.55688931]
[1734368786824,36.55688931,218.58,218.52,16.55688931]
[1734368787644,16.55688931,218.61,218.54,16.55688931]
[1734368787845,16.55688931,218.64,218.57,16.55688931]
[1734368788139,16.55688931,218.63,218.56,16.55688931]
[1734368788829,0.12549,218.63,218.57,16.55688931]
[1734368789641,18.11858931,218.68,218.61,16.55688931]
[1734368790339,0.12549,218.65,218.59,16.55688931]
[1734368790636,16.55688931,218.66,218.54,1.5561]
[1734368790637,16.55688931,218.63,218.57,16.55688931]
[1734368790841,0.12549,218.67,218.58,16.55688931]
[1734368791040,20.0,218.63,218.59,16.55688931]
[1734368791429,16.55688931,218.62,218.55,16.55688931]
[1734368791826,20.0,218.63,218.51,11.83424391]
[1734368791827,20.0,218.58,218.53,16.55688931]
[1734368792038,20.0,218.57,218.53,16.55688931]
[1734368792924,16.55688931,218.6,218.53,16.55688931]
[1734368793120,16.55688931,218.6,218.54,16.55688931]
[1734368793324,16.55688931,218.61,218.55,16.55688931]
[1734368793544,16.55688931,218.61,218.54,16.55688931]
[1734368793745,16.55688931,218.59,218.53,16.55688931]
[1734368794450,16.68237931,218.61,218.54,16.55688931]
[1734368795244,16.55688931,218.64,218.58,16.55688931]
[1734368796337,16.55688931,218.64,218.57,16.55688931]
[1734368796940,16.55688931,218.63,218.56,16.55688931]
[1734368797449,16.55688931,218.64,218.58,16.55688931]
[1734368797836,16.55688931,218.65,218.58,16.55688931]
[1734368798026,16.55688931,218.66,218.59,16.55688931]
[1734368799033,8.70475208,218.68,218.61,16.55688931]
[1734368799034,18.11858931,218.68,218.61,16.55688931]
[1734368799230,23.69994139,218.7,218.63,16.55688931]
[1734368799422,16.55688931,218.7,218.63,16.55688931]
[1734368800053,16.55688931,218.7,218.64,16.55688931]
[1734368800228,16.55688931,218.72,218.65,16.55688931]
[1734368800639,20.0,218.69,218.65,16.55688931]
[1734368800856,23.69994139,218.75,218.68,16.55688931]
[1734368801040,16.55688931,218.76,218.7,16.55688931]
[1734368801255,16.55688931,218.77,218.7,16.55688931]
[1734368801936,16.55688931,218.77,218.58,3.48580484]
[1734368801937,23.69994139,218.8,218.72,16.55688931]
[1734368802137,23.69994139,218.82,218.75,16.55688931]
[1734368802370,23.69994139,218.83,218.76,16.55688931]
[1734368802649,16.55688931,218.83,218.76,16.55688931]
[1734368802835,16.55688931,218.82,218.75,16.55688931]
[1734368803173,1.5606,218.85,218.69,0.68558222]
[1734368803174,16.55688931,218.78,218.71,16.55688931]
[1734368803773,16.55688931,218.78,218.68,1.5212]
[1734368803774,16.55688931,218.77,218.7,16.55688931]
[1734368803978,16.55688931,218.78,218.71,16.55688931]
[1734368804839,0.12549,218.84,218.7,16.55688931]
[1734368804840,16.55688931,218.77,218.7,16.55688931]
[1734368805638,16.55688931,218.79,218.72,16.55688931]
[1734368806036,16.55688931,218.78,218.71,16.55688931]
[1734368806549,16.55688931,218.78,218.68,1.5212]
[1734368806550,16.55688931,218.79,218.72,16.55688931]
[1734368806752,16.55688931,218.81,218.74,16.55688931]
[1734368806941,16.55688931,218.8,218.73,16.55688931]
[1734368808106,16.52731609,218.79,218.7,23.776884]
[1734368808884,16.52731609,218.8,218.7,23.776884]
[1734368811378,16.52731609,218.8,218.69,23.776884]
[1734368811978,16.52731609,218.8,218.69,24.46255751]
[1734368812179,16.52731609,218.81,218.69,24.46255751]
[1734368812679,16.52731609,218.82,218.69,24.46255751]
[1734368812899,20.0,218.84,218.73,23.776884]
[1734368813194,18.08791609,218.85,218.73,23.776884]
[1734368813401,20.0,218.84,218.74,0.68551712]
[1734368813598,20.0,218.83,218.75,23.776884]
[1734368814393,20.0,218.84,218.75,23.776884]
[1734368814712,20.0,218.83,218.74,23.776884]
[1734368814910,20.0,218.83,218.75,0.68544891]
[1734368815081,20.0,218.84,218.76,23.776884]
[1734368815281,20.0,218.83,218.76,23.776884]
[1734368815488,6.5374,218.87,218.76,23.776884]
[1734368816445,16.52731609,218.88,218.78,23.776884]
[1734368816604,1.5355,218.9,218.78,23.776884]
[1734368816808,23.19550919,218.92,218.8,23.776884]
[1734368817015,6.6681931,218.92,218.8,23.776884]
[1734368817312,6.6681931,218.92,218.81,0.68526765]
[1734368817511,0.5642931,218.92,218.82,23.776884]
[1734368818643,16.52731609,218.9,218.81,0.68526765]
[1734368818944,16.52731609,218.88,218.78,1.5774]
[1734368819147,16.52731609,218.9,218.79,23.776884]
[1734368819306,16.52731609,218.88,218.78,1.5774]
[1734368820021,16.52731609,218.87,218.76,0.68537352]
[1734368820208,16.52731609,218.86,218.73,0.68541095]
[1734368820412,16.52731609,218.85,218.73,0.68541095]
[1734368820639,16.52731609,218.84,218.73,0.68541095]
[1734368820843,16.52731609,218.83,218.72,7.9749]
[1734368821409,16.52731609,218.83,218.73,0.68553862]
[1734368821609,16.52731609,218.82,218.72,7.9749]
[1734368821912,16.52731609,218.83,218.72,7.9749]
[1734368822108,16.52731609,218.83,218.72,1.6095]
[1734368822653,16.65280609,218.82,218.72,1.6095]
[1734368822837,6.152,218.89,218.73,0.68559791]
[1734368823034,16.52731609,218.87,218.74,23.776884]
[1734368823274,16.52731609,218.86,218.74,23.776884]
[1734368823444,0.12549,218.83,218.72,1.6095]
[1734368823648,16.52731609,218.82,218.72,1.6095]
[1734368823872,16.52731609,218.84,218.73,23.776884]
[1734368824736,20.0,218.85,218.73,23.776884]
[1734368824961,18.15471609,218.9,218.75,23.776884]
[1734368825169,18.15471609,218.9,218.77,23.776884]
[1734368825373,16.52731609,218.88,218.77,23.776884]
[1734368825555,16.65280609,218.89,218.78,0.6853977]
[1734368825760,0.12549,218.89,218.78,0.6853977]
[1734368826672,1.6274,218.9,218.78,0.6853977]
[1734368826673,17.09160919,218.92,218.81,20.0]
[1734368826897,0.5642931,218.92,218.82,23.776884]
[1734368827596,17.09160919,218.92,218.82,23.776884]
[1734368827885,17.09160919,218.92,218.81,20.0]
[1734368828185,20.5642931,218.92,218.82,23.776884]
[1734368829561,20.5642931,218.92,218.83,0.81071218]
[1734368829762,20.5642931,218.92,218.84,23.776884]
[1734368829763,0.5642931,218.92,218.84,23.776884]
[1734368830685,0.5642931,218.92,218.82,1.5543]
[1734368830686,16.52731609,218.91,218.82,1.5543]
[1734368831161,14.44068957,218.91,218.82,1.5543]